bitfinex/quotes_ETHUSD_20251004
["timestamp","ask_amount","ask_price","bid_price","bid_amount"]
[1759576868843,2.71051364,4487.9,4487.8,2.403]
[1759576870444,2.82171364,4487.9,4487.8,2.403]
[1759576870642,2.82171364,4487.9,4487.8,0.001]
[1759576870844,3.32729737,4487.9,4487.8,2.515]
[1759576871206,3.32729737,4487.9,4487.8,0.001]
[1759576871440,3.32729737,4487.9,4487.8,2.515]
[1759576871817,3.32729737,4487.9,4487.8,0.001]
[1759576884359,2.85699737,4487.9,4487.8,0.001]
[1759576884563,0.1232,4487.9,4487.8,0.001]
[1759576885750,0.1232,4487.9,4487.8,0.32025562]
[1759576892688,0.1232,4487.9,4487.8,0.001]
[1759576895407,0.012,4487.9,4487.8,0.32025562]
[1759576895609,0.012,4487.9,4487.8,0.5774403]
[1759576898180,0.012,4487.9,4487.8,3.0914403]
[1759576898564,0.012,4487.9,4487.8,3.11372293]
[1759576903286,0.012,4487.9,4487.8,3.0914403]
[1759576903899,0.012,4487.9,4487.8,5.31970359]
[1759576905886,0.012,4487.9,4487.8,3.0914403]
[1759576906077,0.012,4487.9,4487.8,3.11372293]
[1759576907668,0.012,4487.9,4487.8,3.0914403]
[1759576909014,0.4652,4487.9,4487.8,3.0914403]
[1759576909220,0.4652,4487.9,4487.8,2.83425562]
[1759576911820,0.4652,4487.9,4487.8,2.515]
[1759576912718,0.012,4487.9,4487.8,2.515]
[1759576914326,0.012,4487.9,4487.8,0.001]
[1759576914520,0.012,4487.9,4487.8,2.515]
[1759576915020,0.4779,4487.9,4487.8,2.515]
[1759576915629,0.012,4487.9,4487.8,2.515]
[1759576915836,0.012,4487.9,4487.8,2.83425562]
[1759576917025,0.012,4487.9,4487.8,0.32025562]
[1759576917232,0.012,4487.9,4487.8,2.83325562]
[1759576917395,0.012,4487.9,4487.8,0.32025562]
[1759576917597,0.012,4487.9,4487.8,2.83325562]
[1759576919132,0.012,4487.9,4487.8,5.86309218]
[1759576919338,0.012,4487.9,4487.8,4.60150557]
[1759576920033,0.012,4487.9,4487.8,6.82976886]
[1759576920535,0.012,4487.9,4487.8,2.08850557]
[1759576920740,0.4779,4487.9,4487.8,2.514]
[1759576922222,2.70611364,4487.9,4487.8,0.001]
[1759576922438,0.4779,4487.9,4487.8,2.514]
[1759576922639,0.98303577,4487.9,4487.8,2.514]
[1759576922845,0.98303577,4487.9,4487.8,0.001]
[1759576922846,3.21124941,4487.9,4487.8,0.001]
[1759576923041,3.21124941,4487.9,4487.8,2.514]
[1759576926246,0.98303577,4487.9,4487.8,2.514]
[1759576926581,0.4779,4487.9,4487.8,2.514]
[1759576927246,2.70611364,4487.9,4487.8,2.514]
[1759576928443,0.4779,4487.9,4487.8,2.514]
[1759576929151,2.70611364,4487.9,4487.8,2.514]
[1759576929316,2.24021364,4487.9,4487.8,2.514]
[1759576929517,2.70611364,4487.9,4487.8,2.514]
[1759576931132,2.988445,4487.9,4487.8,2.514]
[1759576933680,0.76023136,4487.9,4487.8,2.514]
[1759576934270,0.4779,4487.9,4487.8,2.514]
[1759576935145,0.012,4487.9,4487.8,2.514]
[1759576937872,0.012,4487.9,4487.8,2.83325562]
[1759576938882,0.012,4487.9,4487.8,5.06151891]
[1759576939278,0.012,4487.9,4487.8,5.17471891]
[1759576939580,0.012,4487.9,4487.8,6.00640376]
[1759576940372,0.012,4487.9,4487.8,3.77814047]
[1759576940574,0.012,4487.9,4487.8,3.8004231]
[1759576941483,0.012,4487.9,4487.8,2.96873825]
[1759576941696,0.012,4487.9,4487.8,5.17471891]
[1759576942595,0.012,4487.9,4487.8,2.94645562]
[1759576943170,0.012,4487.9,4487.8,5.17471891]
[1759576943907,0.012,4487.9,4487.8,2.94645562]
[1759576944203,0.012,4487.9,4487.8,2.96873825]
[1759576944378,0.012,4487.9,4487.8,3.80266022]
[1759576944580,0.012,4487.9,4487.8,6.03092351]
[1759576944791,0.012,4487.9,4487.8,6.00864088]
[1759576953843,0.012,4487.9,4487.8,3.78037759]
[1759576955112,0.4789,4487.9,4487.8,3.78037759]
[1759576955314,0.4789,4487.9,4487.8,2.94645562]
[1759576956135,0.4789,4487.9,4487.8,2.6272]
[1759576957641,0.012,4487.9,4487.8,2.6272]
[1759576961344,0.4789,4487.9,4487.8,2.6272]
[1759576963180,0.012,4487.9,4487.8,3.42877327]
[1759576963357,0.012,4487.9,4487.8,4.34877319]
[1759576963952,0.012,4487.9,4487.8,6.57703648]
[1759576964150,0.012,4487.9,4487.8,4.34877319]
[1759576964598,0.4789,4487.9,4487.8,4.34877319]
[1759576965799,0.4789,4487.9,4487.8,6.57703648]
[1759576965999,0.012,4487.9,4487.8,5.77546321]
[1759576968031,0.012,4487.9,4487.8,6.09471883]
[1759576969313,0.012,4487.9,4487.8,3.86645554]
[1759576969971,0.4789,4487.9,4487.8,3.86645554]
[1759576971499,0.4789,4487.9,4487.8,6.09471883]
[1759576971824,0.4789,4487.9,4487.8,3.86645554]
[1759576972141,0.4789,4487.9,4487.8,2.94645562]
[1759576972436,0.4862,4487.9,4487.8,2.94645562]
[1759576972993,0.4862,4487.9,4487.8,5.17471891]
[1759576973198,0.012,4487.9,4487.8,5.17471891]
[1759576979756,0.012,4487.9,4487.8,4.85546329]
[1759576986147,0.012,4487.9,4487.8,5.17471891]
[1759576988087,0.012,4487.9,4487.8,2.6272]
[1759576988277,0.4862,4487.9,4487.8,2.6272]
[1759576988683,0.4862,4487.9,4487.8,3.42866418]
[1759576995016,0.012,4487.9,4487.8,5.65692747]
[1759576995198,0.012,4487.9,4487.8,5.78355722]
[1759576995965,0.012,4487.9,4487.8,6.98587339]
[1759576996198,0.012,4487.9,4487.8,7.40437966]
[1759576997984,0.012,4487.9,4487.8,7.09707339]
[1759577001416,0.012,4487.9,4487.8,4.8688101]
[1759577001620,0.012,4487.9,4487.8,7.09707339]
[1759577001767,0.012,4487.9,4487.8,4.8688101]
[1759577002031,0.012,4487.9,4487.8,3.66649393]
[1759577003029,0.012,4487.9,4487.8,3.34723831]
[1759577005158,0.4858,4487.9,4487.8,3.34723831]
[1759577005536,0.4858,4487.9,4487.8,0.83423831]
[1759577005762,0.4858,4487.9,4487.8,3.34723831]
[1759577006070,0.012,4487.9,4487.8,3.34723831]
[1759577016396,0.457,4487.9,4487.8,2.7384]
[1759577018473,0.457,4487.9,4487.8,0.2254]
[1759577018662,0.457,4487.9,4487.8,3.53948241]
[1759577022613,0.457,4487.9,4487.8,2.7384]
[1759577022913,0.457,4487.9,4487.8,2.76068263]
[1759577024789,0.012,4487.9,4487.8,4.98894592]
[1759577025001,0.012,4487.9,4487.8,4.96666329]
[1759577025511,0.457,4487.9,4487.8,2.7384]
[1759577025709,0.457,4487.9,4487.8,4.98894592]
[1759577026009,0.457,4487.9,4487.8,4.96666329]
[1759577028422,0.457,4487.9,4487.8,2.7384]
[1759577028600,0.457,4487.9,4487.8,2.76068263]
[1759577028802,0.457,4487.9,4487.8,4.98894592]
[1759577029016,0.457,4487.9,4487.8,4.96666329]
[1759577029325,0.012,4487.9,4487.8,4.96666329]
[1759577031523,0.012,4487.9,4487.8,6.48823508]
[1759577031683,0.012,4487.9,4487.8,5.28591891]
[1759577032121,0.4656,4487.9,4487.8,3.05765562]
[1759577033204,0.012,4487.9,4487.8,3.05765562]
[1759577036023,0.4656,4487.9,4487.8,2.7384]
[1759577038007,0.012,4487.9,4487.8,2.7384]
[1759577038208,0.4656,4487.9,4487.8,2.7384]
[1759577039116,0.012,4487.9,4487.8,2.7384]
[1759577041455,0.012,4487.9,4487.8,0.2254]
[1759577041661,0.4656,4487.9,4487.8,2.6262]
[1759577041813,0.74669233,4487.9,4487.8,2.513]
[1759577043648,2.97490597,4487.9,4487.8,2.513]
[1759577043970,0.74669233,4487.9,4487.8,2.513]
[1759577046560,0.4656,4487.9,4487.8,2.513]
[1759577048390,0.012,4487.9,4487.8,2.513]
[1759577051179,0.4656,4487.9,4487.8,2.513]
[1759577054303,0.012,4487.9,4487.8,2.513]
[1759577056900,0.012,4487.9,4487.8,5.65389886]
[1759577057055,0.012,4487.9,4487.8,6.75322188]
[1759577058727,0.012,4487.9,4487.8,4.52495859]
[1759577059016,0.012,4487.9,4487.8,6.75322188]
[1759577059685,0.012,4487.9,4487.8,5.95178631]
[1759577060280,0.012,4487.9,4487.8,6.75268489]
[1759577060882,0.012,4487.9,4487.8,4.5244216]
[1759577061699,0.012,4487.9,4487.8,6.75268489]
[1759577062639,0.012,4487.9,4487.8,4.5244216]
[1759577062831,0.012,4487.9,4487.8,3.83351423]
[1759577063040,0.443,4487.9,4487.8,3.83351423]
[1759577063544,0.012,4487.9,4487.8,3.83351423]
[1759577064446,0.012,4487.9,4487.8,6.06177752]
[1759577064610,0.012,4487.9,4487.8,3.83351423]
[1759577066049,0.012,4487.9,4487.8,6.06177752]
[1759577066424,0.012,4487.9,4487.8,6.06181399]
[1759577066846,0.012,4487.9,4487.8,7.53849792]
[1759577068037,0.012,4487.9,4487.8,5.31023463]
[1759577069058,0.012,4487.9,4487.8,6.11112988]
[1759577069352,0.012,4487.9,4487.8,6.11112382]
[1759577069570,0.012,4487.9,4487.8,5.31023463]
[1759577069718,0.012,4487.9,4487.8,3.59912381]
[1759577069914,0.012,4487.9,4487.8,6.11112381]
[1759577070556,0.012,4487.9,4487.8,2.79823463]
[1759577070769,0.012,4487.9,4487.8,5.31023463]
[1759577071835,0.012,4487.9,4487.8,6.11110222]
[1759577072249,0.4603,4487.9,4487.8,5.7918466]
[1759577072649,0.4603,4487.9,4487.8,3.2798466]
[1759577072862,0.4603,4487.9,4487.8,5.7918466]
[1759577073561,0.012,4487.9,4487.8,5.7918466]
[1759577074539,0.4603,4487.9,4487.8,5.7918466]
[1759577074747,0.4603,4487.9,4487.8,3.51422762]
[1759577074944,0.4603,4487.9,4487.8,1.00222762]
[1759577075145,0.4603,4487.9,4487.8,3.51422762]
[1759577079422,0.012,4487.9,4487.8,3.51422762]
[1759577079761,0.4603,4487.9,4487.8,3.51422762]
[1759577080507,0.4603,4487.9,4487.8,1.00222762]
[1759577080708,0.4603,4487.9,4487.8,3.51422762]
[1759577081497,0.012,4487.9,4487.8,3.51422762]
[1759577082324,0.012,4487.9,4487.8,2.71336003]
[1759577082823,0.012,4487.9,4487.8,3.51451047]
[1759577083458,0.4603,4487.9,4487.8,3.51451047]
[1759577084049,0.4603,4487.9,4487.8,2.71336003]
[1759577084735,0.4603,4487.9,4487.8,0.20136003]
[1759577084950,0.4603,4487.9,4487.8,2.71336003]
[1759577087728,0.4603,4487.9,4487.8,0.20136003]
[1759577087927,0.4603,4487.9,4487.8,2.71336003]
[1759577088770,0.4603,4487.9,4487.8,0.20136003]
[1759577089071,0.4603,4487.9,4487.8,2.71336003]
[1759577093294,0.442,4487.9,4487.8,0.20136003]
[1759577093446,2.67021364,4487.9,4487.8,2.513]
[1759577098978,0.442,4487.9,4487.8,2.513]
[1759577100983,0.012,4487.9,4487.8,2.513]
[1759577102884,0.012,4487.9,4487.8,5.97329054]
[1759577103053,0.012,4487.9,4487.8,6.68614791]
[1759577103471,0.012,4487.9,4487.8,5.88457628]
[1759577105389,0.012,4487.9,4487.8,5.77337628]
[1759577105584,0.002,4488.0,4487.9,2.22821364]
[1759577105791,0.002,4488.0,4487.9,3.83343975]
[1759577105954,0.002,4488.0,4487.9,18.33343975]
[1759577106288,0.002,4488.0,4487.9,18.31115762]
[1759577107655,0.002,4488.0,4487.9,32.26224662]
[1759577108090,0.002,4488.0,4487.9,32.70913701]
[1759577108408,0.002,4488.0,4487.9,30.76370501]
[1759577108596,0.002,4488.0,4487.9,32.49898901]
[1759577109056,0.002,4488.0,4487.9,30.76370501]
[1759577109649,0.002,4488.0,4487.9,32.20179801]
[1759577110160,0.002,4488.0,4487.9,30.76179801]
[1759577110695,0.002,4488.0,4487.9,18.75804801]
[1759577110881,0.002,4488.0,4487.9,32.20179801]
[1759577111491,0.002,4488.0,4487.9,30.59476001]
[1759577111850,0.002,4488.0,4487.9,27.45751001]
[1759577112058,0.002,4488.0,4487.9,24.16753401]
[1759577112955,0.002,4488.0,4487.9,26.92840617]
[1759577114200,0.002,4488.0,4487.9,18.84718817]
[1759577114394,0.002,4488.0,4487.9,26.92840617]
[1759577115215,0.002,4488.0,4487.9,33.68260817]
[1759577116245,0.002,4488.0,4487.9,33.68451417]
[1759577117301,0.002,4488.0,4487.9,33.68224517]
[1759577117530,0.002,4488.0,4487.9,34.06371817]
[1759577117742,0.002,4488.0,4487.9,33.79919017]
[1759577118042,0.002,4488.0,4487.9,33.47993455]
[1759577118214,0.002,4488.0,4487.9,33.75758655]
[1759577118436,0.002,4488.0,4487.9,33.80423455]
[1759577118639,0.002,4488.0,4487.9,34.70236255]
[1759577118841,0.002,4488.0,4487.9,36.64323182]
[1759577119007,0.002,4488.0,4487.9,37.34592844]
[1759577119203,0.002,4488.0,4487.9,37.35149644]
[1759577119838,0.002,4488.0,4487.9,44.32950844]
[1759577120138,0.002,4488.0,4487.9,42.91286944]
[1759577120966,0.002,4488.0,4487.9,42.09966644]
[1759577121727,0.002,4488.0,4487.9,31.90080544]
[1759577122046,0.002,4488.0,4487.9,32.03427244]
[1759577122917,0.002,4488.0,4487.9,33.41234344]
[1759577123329,0.002,4488.0,4487.9,33.17734344]
[1759577125151,0.002,4488.0,4487.9,33.46834344]
[1759577125855,0.002,4488.0,4487.9,32.47729344]
[1759577126053,0.002,4488.0,4487.9,32.53926044]
[1759577127151,0.002,4488.0,4487.9,31.40132444]
[1759577128133,0.002,4488.0,4487.9,33.04905744]
[1759577128336,0.002,4488.0,4487.9,31.26082744]
[1759577129255,0.002,4488.0,4487.9,34.64192644]
[1759577129459,0.002,4488.0,4487.9,32.44192644]
[1759577130160,0.002,4488.0,4487.9,19.84929444]
[1759577130335,0.002,4488.0,4487.9,34.86419344]
[1759577130943,0.002,4488.0,4487.9,33.66419344]
[1759577131348,0.002,4488.0,4487.9,32.22919344]
[1759577131659,0.002,4488.0,4487.9,31.20828744]
[1759577132242,0.002,4488.0,4487.9,31.19928744]
[1759577133270,0.002,4488.0,4487.9,36.38405644]
[1759577133477,0.002,4488.0,4487.9,37.98170737]
[1759577133682,0.002,4488.0,4487.9,36.38405644]
[1759577134286,0.002,4488.0,4487.9,36.64577944]
[1759577134488,0.002,4488.0,4487.9,37.04343037]
[1759577134793,0.002,4488.0,4487.9,36.80116937]
[1759577135344,0.002,4488.0,4487.9,35.44577944]
[1759577136391,0.002,4488.0,4487.9,38.23189444]
[1759577137387,0.002,4488.0,4487.9,22.36029444]
[1759577137695,0.002,4488.0,4487.9,40.52894844]
[1759577138574,0.002,4488.0,4487.9,42.51147444]
[1759577138865,0.002,4488.0,4487.9,42.22781644]
[1759577139461,0.002,4488.0,4487.9,43.42781644]
[1759577140478,0.002,4488.0,4487.9,45.70331344]
[1759577141487,0.002,4488.0,4487.9,48.48402144]
[1759577141667,0.002,4488.0,4487.9,46.99981644]
[1759577142495,0.002,4488.0,4487.9,48.43786744]
[1759577143493,0.002,4488.0,4487.9,52.12588744]
[1759577143796,0.002,4488.0,4487.9,43.77303244]
[1759577144094,0.002,4488.0,4487.9,43.51403944]
[1759577144580,0.002,4488.0,4487.9,43.79490244]
[1759577144893,0.002,4488.0,4487.9,40.95425644]
[1759577145702,0.002,4488.0,4487.9,22.36029444]
[1759577145857,0.002,4488.0,4487.9,42.56082244]
[1759577146057,0.002,4488.0,4487.9,38.52003844]
[1759577146260,0.002,4488.0,4487.9,37.19284444]
[1759577146499,0.002,4488.0,4487.9,36.63444444]
[1759577146707,0.002,4488.0,4487.9,33.66541844]
[1759577146908,0.002,4488.0,4487.9,32.82717544]
[1759577147211,0.002,4488.0,4487.9,31.21498844]
[1759577147712,0.4389,4488.0,4487.9,27.32459144]
[1759577148394,0.4389,4488.0,4487.9,27.01728517]
[1759577148899,0.4389,4488.0,4487.9,27.11079517]
[1759577149802,0.4389,4488.0,4487.9,27.56355517]
[1759577151366,0.002,4488.0,4487.9,27.56355517]
[1759577151866,0.002,4488.0,4487.9,37.43257617]
[1759577152813,0.002,4488.0,4487.9,38.87969317]
[1759577153509,0.002,4488.0,4487.9,39.18699944]
[1759577153818,0.002,4488.0,4487.9,40.98367644]
[1759577154918,0.002,4488.0,4487.9,41.34156744]
[1759577155139,0.002,4488.1,4488.0,5.74995999]
[1759577155439,0.002,4488.1,4488.0,26.56533459]
[1759577156038,0.002,4488.1,4488.0,40.2559054]
[1759577156245,0.002,4488.1,4488.0,39.8713774]
[1759577156840,0.002,4488.1,4488.0,25.4469674]
[1759577157140,0.002,4488.1,4488.0,43.1094534]
[1759577157808,0.002,4488.1,4488.0,43.93871967]
[1759577158844,0.002,4488.1,4488.0,45.13694867]
[1759577159149,1e-08,4488.5,4488.4,5.26156542]
[1759577159319,1e-08,4488.5,4488.4,23.07440983]
[1759577159648,1e-08,4488.5,4488.4,22.86369183]
[1759577159942,0.42990001,4488.5,4488.4,37.71734668]
[1759577160337,0.42990001,4488.5,4488.4,30.85762841]
[1759577161151,0.42990001,4488.5,4488.4,32.44880941]
[1759577162021,0.42990001,4488.5,4488.4,36.23205741]
[1759577162646,1e-08,4488.5,4488.4,36.23205741]
[1759577162809,0.42990001,4488.5,4488.4,36.23205741]
[1759577163005,0.42990001,4488.5,4488.4,25.17395241]
[1759577163351,0.42990001,4488.5,4488.4,37.26778541]
[1759577163848,1e-08,4488.5,4488.4,37.26778541]
[1759577164226,1e-08,4488.5,4488.4,39.14573441]
[1759577164424,1e-08,4488.5,4488.4,37.54362353]
[1759577165164,1e-08,4488.5,4488.4,41.71543053]
[1759577165464,1e-08,4488.5,4488.4,36.80133853]
[1759577165668,0.42990001,4488.5,4488.4,36.80133853]
[1759577165820,1e-08,4488.5,4488.4,36.80133853]
[1759577166233,1e-08,4488.5,4488.4,37.66344753]
[1759577166448,1e-08,4488.5,4488.4,35.89313253]
[1759577166767,1e-08,4488.5,4488.4,36.2004388]
[1759577167134,0.42990001,4488.5,4488.4,36.7547518]
[1759577167336,0.42990001,4488.5,4488.4,36.12770134]
[1759577168237,0.42990001,4488.5,4488.4,37.51855834]
[1759577168693,0.42990001,4488.5,4488.4,36.21211834]
[1759577168976,0.42990001,4488.5,4488.4,35.43746234]
[1759577169172,0.42990001,4488.5,4488.4,25.47894134]
[1759577169478,0.42990001,4488.5,4488.4,22.66063507]
[1759577169774,0.42990001,4488.5,4488.4,26.32106653]
[1759577170291,0.42990001,4488.5,4488.4,26.08934053]
[1759577170635,0.42990001,4488.5,4488.4,23.27102453]
[1759577170841,0.42990001,4488.5,4488.4,23.57184153]
[1759577171673,0.42990001,4488.5,4488.4,22.93824153]
[1759577172273,0.42990001,4488.5,4488.4,19.64754789]
[1759577172448,0.42990001,4488.5,4488.4,22.15854789]
[1759577174174,2.19319774,4489.5,4488.8,2.22773847]
[1759577174348,2.22738338,4489.6,4488.9,3.31114135]
[1759577174550,0.48845645,4489.5,4488.9,3.31114135]
[1759577175044,0.48845645,4489.5,4488.9,3.97963597]
[1759577175511,0.48845645,4489.5,4488.9,6.20734416]
[1759577175818,0.48845645,4489.5,4489.0,0.80014135]
[1759577176119,0.4299,4489.4,4489.1,2.511]
[1759577176415,0.4299,4489.3,4489.1,2.511]
[1759577176615,0.4299,4489.2,4489.1,2.511]
[1759577181749,0.4319,4489.2,4489.1,2.511]
[1759577184258,0.4319,4489.2,4489.1,2.6222]
[1759577190581,0.4319,4489.2,4488.9,0.80014135]
[1759577190780,0.26793322,4489.2,4489.0,2.511]
[1759577190946,0.4616,4489.1,4489.0,2.511]
[1759577191766,2.689218,4489.1,4489.0,2.511]
[1759577193642,0.4616,4489.1,4488.7,0.1112]
[1759577193856,0.1112,4489.0,4488.6,0.80014135]
[1759577194117,2.22776688,4488.8,4488.5,0.80014135]
[1759577194289,0.4616,4488.7,4488.6,2.511]
[1759577194460,2.68941651,4488.7,4488.6,2.511]
[1759577194660,3.19225117,4488.7,4488.6,2.511]
[1759577195898,0.96443466,4488.7,4488.6,2.511]
[1759577197000,0.4616,4488.7,4488.6,2.511]
[1759577198400,0.4616,4488.7,4488.3,0.001]
[1759577198603,0.4616,4488.6,4488.4,2.511]
[1759577198816,0.4616,4488.6,4488.4,4.73894246]
[1759577199097,0.4616,4488.6,4488.4,2.511]
[1759577200387,0.4616,4488.8,4488.4,2.511]
[1759577200586,0.66862723,4488.9,4488.4,2.511]
[1759577200587,0.4616,4488.7,4488.4,2.511]
[1759577201670,0.4616,4488.6,4488.4,2.511]
[1759577205450,0.66862723,4488.8,4488.4,2.511]
[1759577205608,1.13022723,4488.8,4488.4,2.511]
[1759577205942,1.13022723,4488.8,4488.4,4.73896285]
[1759577206242,0.4616,4488.8,4488.4,2.511]
[1759577206443,1.13022723,4488.8,4488.4,2.511]
[1759577206850,0.4616,4488.8,4488.4,2.511]
[1759577208351,2.68936834,4488.8,4488.4,2.511]
[1759577208552,3.35799557,4488.8,4488.4,2.511]
[1759577208755,2.89639557,4488.8,4488.4,2.511]
[1759577208927,0.4616,4488.7,4488.4,2.511]
[1759577209433,2.68942537,4488.7,4488.4,2.511]
[1759577209745,0.66862723,4488.8,4488.4,2.511]
[1759577209746,2.68946949,4488.6,4488.4,2.511]
[1759577209915,0.4616,4488.5,4488.4,2.511]
[1759577213151,0.66862723,4488.8,4488.4,2.511]
[1759577213518,1.10532723,4488.8,4488.4,2.511]
[1759577213718,3.33310271,4488.8,4488.4,2.511]
[1759577214751,2.89640271,4488.8,4488.4,2.511]
[1759577214943,3.33310271,4488.8,4488.4,2.511]
[1759577215728,2.89640271,4488.8,4488.4,2.511]
[1759577215933,0.4367,4488.7,4488.4,2.511]
[1759577216160,2.66451679,4488.7,4488.4,2.511]
[1759577216958,0.4367,4488.7,4488.4,2.511]
[1759577218530,0.66862723,4488.8,4488.4,2.511]
[1759577218736,0.1112,4489.0,4488.4,2.511]
[1759577219060,0.66862723,4488.9,4488.4,2.511]
[1759577219260,2.22776688,4488.8,4488.4,2.511]
[1759577219453,2.66446688,4488.8,4488.4,3.31114135]
[1759577220167,3.33309411,4488.8,4488.4,3.31114135]
[1759577220367,1.10532723,4488.8,4488.4,3.31114135]
[1759577220531,2.22786959,4488.6,4488.4,2.511]
[1759577220737,2.66456959,4488.6,4488.4,2.511]
[1759577220941,0.4367,4488.5,4488.4,2.511]
[1759577222672,0.77982723,4489.0,4488.4,2.511]
[1759577222857,0.4367,4488.7,4488.4,2.511]
[1759577223568,2.66453026,4488.7,4488.4,3.31114135]
[1759577226577,0.77982723,4489.0,4488.4,3.31114135]
[1759577226961,0.77982723,4489.0,4488.5,0.80014135]
[1759577227145,3.44420763,4489.0,4488.6,2.511]
[1759577227345,4.01158318,4489.0,4488.6,2.511]
[1759577228804,2.22772371,4488.9,4488.6,2.511]
[1759577229005,1.78390278,4489.0,4488.6,2.511]
[1759577229199,4.01160729,4489.0,4488.6,2.511]
[1759577229405,2.22772297,4488.9,4488.6,2.511]
[1759577229602,2.2277701,4488.8,4488.6,2.511]
[1759577230410,1.78390278,4489.0,4488.6,2.511]
[1759577230609,3.4442033,4489.0,4488.6,2.511]
[1759577231430,2.2277254,4488.9,4488.6,2.511]
[1759577231821,2.77557021,4489.0,4488.6,2.511]
[1759577232191,2.77559365,4489.0,4488.6,2.511]
[1759577233185,2.22771771,4488.9,4488.6,2.511]
[1759577234398,2.22771771,4488.9,4488.6,2.512]
[1759577234925,2.77558115,4489.0,4488.6,2.512]
[1759577235232,2.22771966,4488.9,4488.6,2.512]
[1759577235436,2.77558372,4489.0,4488.6,2.512]
[1759577235742,2.22773396,4488.9,4488.6,2.512]
[1759577236043,0.4367,4488.9,4488.6,2.512]
[1759577236243,2.66446688,4488.8,4488.6,2.512]
[1759577236549,2.66451651,4488.7,4488.6,2.512]
[1759577236900,2.66451651,4488.7,4488.6,0.001]
[1759577237324,2.66451651,4488.7,4488.6,2.512]
[1759577237709,2.66451651,4488.7,4488.6,0.001]
[1759577238015,3.44441676,4488.7,4488.6,2.512]
[1759577238213,3.96808804,4488.7,4488.6,2.512]
[1759577238546,3.96808804,4488.7,4488.6,0.001]
[1759577247457,3.53138804,4488.7,4488.6,0.32025562]
[1759577247614,3.00771676,4488.7,4488.6,0.001]
[1759577247951,0.77990025,4488.7,4488.6,2.512]
[1759577248157,0.1112,4488.7,4488.6,2.83125562]
[1759577248316,0.1112,4488.7,4488.6,2.9419]
[1759577250377,2.33901651,4488.7,4488.6,2.9419]
[1759577250949,0.1112,4488.7,4488.6,2.512]
[1759577251543,2.33901651,4488.7,4488.6,2.512]
[1759577251747,2.33901651,4488.7,4488.6,2.9419]
[1759577252096,0.1112,4488.7,4488.6,2.512]
[1759577252981,2.33901651,4488.7,4488.6,2.512]
[1759577253184,0.002,4489.2,4488.6,3.55544562]
[1759577253361,0.1112,4489.1,4488.6,3.7941341]
[1759577253691,0.1112,4489.1,4488.7,1.21970316]
[1759577253844,0.1112,4489.1,4488.7,0.78980316]
[1759577254043,0.1112,4489.1,4488.8,0.4299]
[1759577254282,0.1112,4489.1,4488.9,0.31925562]
[1759577254583,0.1112,4489.1,4489.0,2.511]
[1759577254781,0.1112,4489.1,4489.0,3.26015562]
[1759577255443,0.1112,4489.1,4489.0,2.9409]
[1759577256609,0.1112,4489.1,4489.0,3.3489036]
[1759577258047,0.1112,4489.1,4489.0,4.01749208]
[1759577260685,0.1112,4489.1,4489.0,3.58759208]
[1759577261470,2.338818,4489.1,4489.0,3.58759208]
[1759577261801,2.338818,4489.1,4489.0,3.17958848]
[1759577261950,0.1112,4489.1,4489.0,3.17958848]
[1759577262992,2.338818,4489.1,4489.0,3.17958848]
[1759577263372,0.1112,4489.1,4489.0,3.17958848]
[1759577267182,0.002,4489.2,4489.0,3.60948848]
[1759577267370,0.002,4489.2,4489.1,0.40127941]
[1759577267897,0.002,4489.2,4489.1,1.06981426]
[1759577268095,0.002,4489.2,4489.1,0.66853485]
[1759577281182,0.002,4489.2,4489.1,4.010676]
[1759577281417,0.002,4489.2,4489.1,3.75133465]
[1759577281702,0.002,4489.2,4489.1,18.25133465]
[1759577281878,0.002,4489.2,4489.1,20.62905847]
[1759577282079,0.002,4489.2,4489.1,21.82927049]
[1759577282281,0.002,4489.2,4489.1,24.10531856]
[1759577282887,0.002,4489.2,4489.1,22.90667745]
[1759577283511,0.002,4489.2,4489.1,33.19240945]
[1759577283832,0.002,4489.2,4489.1,30.83207045]
[1759577284114,0.002,4489.2,4489.1,30.94514387]
[1759577284726,0.08912387,4491.0,4490.2,2.22705179]
[1759577284885,0.1112,4490.8,4490.5,0.79798869]
[1759577285086,0.1112,4491.2,4490.6,5.2999006]
[1759577285282,0.1112,4491.2,4490.7,2.24908869]
[1759577285510,0.01,4491.9,4491.8,2.22627899]
[1759577285712,0.01,4491.9,4491.8,5.66963162]
[1759577286024,0.01,4491.9,4491.8,5.57811796]
[1759577286225,0.01,4491.9,4491.8,20.07811796]
[1759577286720,0.461,4491.9,4491.8,2.51]
[1759577286887,0.01,4491.9,4491.8,2.51]
[1759577287836,0.01,4491.9,4491.8,4.84596007]
[1759577287987,0.01,4491.9,4491.8,4.82369729]
[1759577288410,0.01,4491.9,4491.8,7.04997628]
[1759577288584,0.01,4491.9,4491.8,5.11580291]
[1759577289289,0.01,4491.9,4491.8,7.3420819]
[1759577290342,0.01,4491.9,4491.8,5.11580291]
[1759577290515,0.01,4491.9,4491.8,4.68620291]
[1759577291820,0.01,4491.9,4491.8,2.80210562]
[1759577292036,0.01,4491.9,4491.8,17.30210562]
[1759577292240,0.01,4491.9,4491.8,14.79210562]
[1759577292412,0.01,4491.9,4491.8,17.30210562]
[1759577293048,0.01,4491.9,4491.8,17.01]
[1759577293630,0.461,4491.9,4491.8,17.01]
[1759577294024,0.461,4491.9,4491.8,2.51]
[1759577294216,0.01,4491.9,4491.8,2.51]
[1759577295421,0.01,4491.9,4491.8,0.1112]
[1759577295614,0.01,4491.9,4491.8,2.6212]